bitfinex/quotes_ETHUSD_20250415
["timestamp","ask_amount","ask_price","bid_price","bid_amount"]
[1744752109017,7.78438618,1592.6,1592.2,12.56092429]
[1744752109018,14.06390517,1592.6,1592.2,12.56092429]
[1744752109337,6.27947132,1592.5,1592.2,6.28043297]
[1744752110119,6.27947132,1592.5,1592.1,6.28095219]
[1744752110601,6.279841,1592.4,1592.1,12.56182727]
[1744752110798,6.27947132,1592.5,1592.2,6.28058023]
[1744752111023,3.52075894,1592.6,1592.0,8.31857431]
[1744752111228,1.5052,1592.6,1592.4,6.2798186]
[1744752113826,7.78436142,1592.6,1592.3,12.56021782]
[1744752113994,7.78436142,1592.6,1592.3,6.28010478]
[1744752114197,14.06356536,1592.6,1592.3,6.28010478]
[1744752114535,6.27944668,1592.5,1592.2,12.56113176]
[1744752114722,6.27944668,1592.5,1592.2,13.90043068]
[1744752115032,14.06367388,1592.6,1592.3,6.28021099]
[1744752115428,12.371132,1592.5,1592.2,12.56106403]
[1744752115637,12.37114041,1592.5,1592.2,6.28049815]
[1744752116015,12.37114041,1592.5,1592.2,12.56101025]
[1744752116446,12.37114041,1592.5,1592.2,6.28049815]
[1744752116647,12.37114041,1592.5,1592.2,12.56101025]
[1744752117848,6.09168425,1592.5,1592.2,12.56101025]
[1744752118027,6.09168425,1592.5,1592.3,6.28013828]
[1744752119651,12.37112535,1592.5,1592.2,13.90028899]
[1744752120446,6.09168425,1592.5,1592.3,6.28011112]
[1744752120648,6.09168425,1592.5,1592.4,6.27982918]
[1744752121048,6.09168425,1592.5,1592.2,7.61980457]
[1744752121253,6.09168425,1592.4,1592.2,7.61978697]
[1744752121441,6.09168425,1592.4,1592.0,14.59968565]
[1744752121442,7.83195511,1592.3,1592.0,14.59968565]
[1744752121641,6.09168425,1592.2,1592.0,6.75999557]
[1744752121964,6.09168425,1592.2,1592.0,13.04128605]
[1744752122245,6.09168425,1592.2,1592.0,6.28116502]
[1744752122738,6.09168425,1592.2,1592.0,12.56246612]
[1744752122933,6.09168425,1592.2,1592.0,6.28116502]
[1744752123456,6.09168425,1592.2,1592.0,12.42612462]
[1744752124258,6.09168425,1592.2,1592.1,6.28101249]
[1744752127757,6.09168425,1592.2,1592.1,7.91361249]
[1744752128053,6.09168425,1592.6,1592.5,6.27943485]
[1744752128654,6.09168425,1592.7,1592.5,12.5588697]
[1744752128963,6.09168425,1592.7,1592.6,7.53492753]
[1744752131267,6.09168425,1592.7,1592.6,8.00532557]
[1744752133639,7.92991117,1593.0,1592.7,6.27854132]
[1744752134230,7.92991117,1593.0,1592.7,12.55706728]
[1744752134652,7.659,1593.2,1592.8,6.27817196]
[1744752134853,6.2775467,1593.0,1592.7,7.89176222]
[1744752135148,6.2775467,1593.0,1592.7,14.17029058]
[1744752136581,6.27710863,1593.1,1592.8,6.27800038]
[1744752136778,6.27710863,1593.1,1592.8,12.55613704]
[1744752136971,14.70162017,1593.2,1592.9,6.27779215]
[1744752137153,14.70162017,1593.2,1592.9,6.27775411]
[1744752137477,6.27642848,1593.3,1593.0,12.55463831]
[1744752137775,12.55284018,1593.3,1593.0,6.2772986]
[1744752138180,12.55284124,1593.3,1593.0,6.2772986]
[1744752138346,6.2764117,1593.3,1593.0,6.2772986]
[1744752138542,6.2764117,1593.3,1593.0,12.55464178]
[1744752138743,14.21018852,1593.4,1593.1,6.27698816]
[1744752139192,1.658,1593.4,1593.3,6.27628193]
[1744752139482,7.93285204,1593.7,1593.4,12.55155519]
[1744752139768,7.93285204,1593.7,1593.4,6.27576888]
[1744752140277,14.20689342,1593.8,1593.5,6.27548032]
[1744752141279,6.27473238,1593.7,1593.4,6.275766]
[1744752141448,6.27473238,1593.7,1593.4,6.9033426]
[1744752141656,6.27473238,1593.7,1593.4,13.17911834]
[1744752143078,1.658,1593.6,1593.3,0.46208731]
[1744752143385,7.93479933,1593.2,1592.9,12.55556607]
[1744752143593,7.93479933,1593.2,1592.8,7.6114]
[1744752143792,7.93479933,1593.2,1592.8,12.27612555]
[1744752143961,6.27719178,1593.1,1592.8,12.75468572]
[1744752144287,6.27719178,1593.1,1592.8,18.89964532]
[1744752145149,12.55446031,1593.1,1592.8,6.62351977]
[1744752145351,6.27719178,1593.1,1592.8,3.47856017]
[1744752145553,6.27719178,1593.1,1592.8,3.0]
[1744752146588,12.55461924,1593.1,1592.8,3.0]
[1744752146752,6.27762243,1593.0,1592.8,3.0]
[1744752147084,12.55535779,1593.0,1592.7,6.27853866]
[1744752147286,12.55535779,1593.0,1592.7,3.0]
[1744752147485,12.55535779,1593.0,1592.7,3.48189273]
[1744752148492,6.27762243,1593.0,1592.7,9.76037724]
[1744752148658,12.55429664,1593.1,1592.7,17.01494152]
[1744752149887,1.658,1593.2,1592.8,6.27825213]
[1744752150092,7.93470664,1593.2,1592.9,6.27765618]
[1744752150889,14.2115477,1593.2,1592.9,6.27765618]
[1744752151088,7.93470664,1593.2,1592.9,6.27765618]
[1744752153373,6.09168425,1593.1,1592.9,6.27765618]
[1744752154068,6.09168425,1593.1,1593.0,6.2774639]
[1744752157406,6.09168425,1593.2,1593.1,3.0]
[1744752157606,5.12978112,1593.2,1593.1,15.10412483]
[1744752158112,61.20704272,1593.9,1593.4,7.86528803]
[1744752158113,5.12978112,1593.5,1593.4,7.86528803]
[1744752159009,5.12978112,1593.5,1593.3,12.55226276]
[1744752159415,5.12978112,1593.5,1593.4,6.27588803]
[1744752161314,5.12978112,1593.5,1593.4,6.74493514]
[1744752162007,5.12978112,1593.5,1593.4,11.04703707]
[1744752163389,5.12978112,1593.5,1593.4,9.74493514]
[1744752179829,5.12978112,1593.8,1593.7,6.27470665]
[1744752180495,5.12978112,1593.8,1593.7,10.79710665]
[1744752187463,2.014218,1594.2,1594.1,6.27313217]
[1744752187623,2.014218,1594.2,1594.1,7.52777825]
[1744752187624,0.393118,1594.2,1594.1,7.52777825]
[1744752188330,0.393118,1594.2,1594.1,7.99432345]
[1744752188525,0.393118,1594.2,1594.1,6.73967737]
[1744752190164,0.393118,1594.2,1594.1,11.91527737]
[1744752190327,0.02,1594.4,1594.3,9.27234522]
[1744752190534,6.1,1594.9,1594.5,9.27155848]
[1744752190711,6.1,1594.9,1594.8,6.27037873]
[1744752190948,6.1,1595.0,1594.8,6.27026908]
[1744752191263,6.1,1595.0,1594.9,6.26998557]
[1744752193176,6.1,1595.0,1594.8,6.27026908]
[1744752193371,6.1,1595.0,1594.8,12.54049544]
[1744752194213,6.1,1595.0,1594.8,6.27022636]
[1744752195298,6.1,1595.0,1594.8,12.5404596]
[1744752195606,6.1,1595.0,1594.8,13.010609]
[1744752196599,6.1,1595.0,1594.8,13.01063697]
[1744752196811,7.49925229,1595.0,1594.8,0.47014559]
[1744752197128,13.76888323,1595.0,1594.7,12.54133868]
[1744752198348,6.1,1595.0,1594.8,6.27031629]
[1744752199323,12.36962618,1595.0,1594.8,0.47982963]
[1744752199507,6.1,1595.0,1594.8,6.27037438]
[1744752199707,6.1,1595.2,1595.1,6.26919942]
[1744752200131,0.02,1595.4,1595.3,6.26841346]
[1744752200337,0.02,1595.4,1595.3,14.53655216]
[1744752200483,6.26629535,1595.9,1595.5,6.26746252]
[1744752200682,2.055318,1595.8,1595.5,6.26746252]
[1744752200915,2.055318,1595.8,1595.4,3.0]
[1744752201181,0.393118,1595.8,1595.5,6.26750428]
[1744752201380,6.65972377,1595.8,1595.5,12.53501389]
[1744752201621,6.65972377,1595.8,1595.5,6.26750428]
[1744752202615,0.393118,1595.8,1595.6,6.26721174]
[1744752205532,6.26700754,1595.7,1595.5,3.46932289]
[1744752205736,12.53413847,1595.7,1595.5,3.46932289]
[1744752205955,6.26700754,1595.7,1595.5,3.46932289]
[1744752206167,0.393118,1595.8,1595.6,6.26718897]
[1744752206474,0.393118,1595.8,1595.5,16.00434055]
[1744752206962,6.65961185,1595.8,1595.5,9.73679736]
[1744752207312,6.65961185,1595.8,1595.5,16.00430264]
[1744752207546,6.65961185,1595.8,1595.5,9.73679736]
[1744752207744,0.393118,1595.8,1595.6,6.26698596]
[1744752207929,6.65968196,1595.8,1595.5,16.00437024]
[1744752208561,0.393118,1595.8,1595.5,17.60480726]
[1744752209013,6.65961528,1595.8,1595.5,11.33725021]
[1744752212068,0.393118,1595.8,1595.6,6.26685239]
[1744752214560,0.393118,1595.8,1595.6,12.533962]
[1744752214743,0.393118,1595.8,1595.6,6.26685239]
[1744752214945,0.393118,1595.8,1595.6,13.66764765]
[1744752215156,0.393118,1595.8,1595.6,7.40051362]
[1744752215764,0.393118,1595.8,1595.6,13.66762674]
[1744752216369,0.393118,1595.8,1595.6,13.66763219]
[1744752217059,0.393118,1595.8,1595.7,6.26684213]
[1744752217231,0.393118,1595.8,1595.7,8.1591432]
[1744752217418,0.393118,1595.8,1595.7,11.7091432]
[1744752217757,1e-08,1595.8,1595.7,13.2771432]
[1744752217961,6.1,1596.3,1596.1,6.2649124]
[1744752218122,6.1,1596.3,1596.2,6.89137032]
[1744752219147,0.02,1596.4,1596.2,11.84645825]
[1744752219461,0.02,1596.4,1596.3,9.26448662]
[1744752221356,0.02,1596.4,1596.3,3.0]
[1744752222061,0.02,1596.4,1596.3,3.45896504]
[1744752222968,0.02,1596.4,1596.3,9.72345166]
[1744752223123,0.02,1596.4,1596.3,11.38494297]
[1744752224333,0.02,1596.4,1596.3,12.92854297]
[1744752225751,0.02,1596.4,1596.3,17.16619794]
[1744752238192,6.1,1596.8,1596.7,10.88401726]
[1744752238481,6.1,1597.0,1596.9,6.26213288]
[1744752240446,7.76,1597.1,1597.0,6.26174076]
[1744752241187,7.76,1597.1,1597.0,6.73584657]
[1744752241492,7.857518,1597.4,1597.0,1.81280581]
[1744752241796,12.3605839,1597.3,1597.0,6.73563469]
[1744752242090,12.3605839,1597.3,1597.1,0.67356347]
[1744752242393,6.1,1597.3,1597.1,6.93459703]
[1744752242591,6.26059417,1597.3,1597.1,0.67356347]
[1744752242881,14.11787084,1597.4,1597.1,0.67356347]
[1744752243473,6.26060124,1597.3,1597.1,0.67356347]
[1744752244050,12.52135649,1597.3,1597.1,0.67356347]
[1744752244383,6.26060124,1597.3,1597.1,0.67356347]
[1744752244592,12.52141165,1597.3,1597.1,0.67356347]
[1744752244750,6.2609784,1597.2,1597.0,0.47410581]
[1744752244945,1.277,1597.1,1596.9,6.26203069]
[1744752245483,1.277,1597.1,1596.9,12.52404458]
[1744752245782,1.277,1597.1,1596.9,6.26201218]
[1744752245978,1.277,1597.1,1596.9,15.23713979]
[1744752246150,1.277,1597.1,1596.9,15.17452493]
[1744752246351,12.52140884,1597.3,1597.0,6.26173855]
[1744752247281,6.1,1597.2,1597.0,6.26173855]
[1744752247455,6.1,1597.2,1597.0,12.58589688]
[1744752247647,6.1,1597.2,1597.1,7.51993838]
[1744752249691,1.748918,1597.4,1597.1,7.51993838]
[1744752249692,0.413118,1597.4,1597.3,6.2605647]
[1744752250391,0.413118,1597.4,1597.3,6.32316233]
[1744752250542,0.413118,1597.4,1597.3,8.10416233]
[1744752250749,0.413118,1597.4,1597.3,11.10416233]
[1744752250998,0.413118,1597.4,1597.3,14.42999628]
[1744752251197,0.413118,1597.4,1597.3,14.36739865]
[1744752252500,1.3192,1597.9,1597.3,14.36739865]
[1744752252501,6.1,1597.9,1597.8,9.25860558]
[1744752252671,6.25716335,1598.2,1597.9,12.51628934]
[1744752252672,6.1,1598.1,1597.9,12.51628934]
[1744752252872,12.3575557,1598.1,1597.8,9.25845674]
[1744752253375,7.57565668,1598.0,1597.7,5.945]
[1744752253974,1.3177,1598.0,1597.7,12.2039724]
[1744752254170,1.3177,1598.0,1597.7,18.46281937]
[1744752254171,7.57556411,1598.0,1597.7,18.46281937]
[1744752254601,7.57556411,1598.0,1597.7,12.20384697]
[1744752254906,6.25825657,1597.9,1597.7,5.945]
[1744752255092,1.3177,1597.8,1597.5,6.25969224]
[1744752255406,1.3177,1597.8,1597.5,12.97959105]
[1744752255809,1.3177,1597.8,1597.5,6.71989881]
[1744752256006,7.57631856,1597.8,1597.5,6.71989771]
[1744752256301,7.57631856,1597.8,1597.5,3.46023356]
[1744752256507,6.25902697,1597.7,1597.5,3.46023356]
[1744752256903,8.94395042,1597.8,1597.2,6.26090547]
[1744752256904,13.65108908,1597.6,1597.2,6.26090547]
[1744752257209,6.25978217,1597.5,1597.2,12.52168763]
[1744752257402,1.2917,1597.4,1597.2,3.0]
[1744752257602,13.65197704,1597.4,1597.2,3.0]
[1744752258104,19.91229671,1597.4,1597.1,61.02620497]
[1744752258316,19.91229671,1597.4,1597.1,12.67853441]
[1744752258317,13.65197704,1597.4,1597.1,12.67853441]
[1744752259013,19.91233478,1597.4,1597.1,12.67853441]
[1744752259315,13.65197704,1597.4,1597.1,12.67853441]
[1744752259614,13.65197704,1597.4,1597.1,18.93976242]
[1744752260018,13.65197704,1597.4,1597.1,12.67853441]
[1744752260312,15.64316189,1597.4,1597.1,9.73452666]
[1744752260505,6.2608024,1597.3,1597.1,3.47332944]
[1744752260679,6.2608024,1597.3,1597.1,0.47332944]
[1744752260872,6.26149089,1597.1,1596.7,6.26268204]
[1744752261088,1.2917,1596.9,1596.8,3.0]
[1744752261293,7.55383288,1596.9,1596.6,12.20712647]
[1744752261486,19.91621803,1596.9,1596.6,5.944]
[1744752261688,6.26252744,1596.8,1596.6,5.944]
[1744752262246,1.2846,1596.6,1596.5,0.4700642]
[1744752262509,7.3846,1596.6,1596.4,9.26397923]
[1744752262700,7.3846,1596.6,1596.4,3.0]
[1744752262899,6.26382307,1596.5,1596.2,12.20875298]
[1744752263077,6.26382307,1596.5,1596.3,3.0]
[1744752263282,19.9114218,1596.6,1596.3,9.26445386]
[1744752263483,8.09114218,1596.5,1595.9,1.23595908]
[1744752263681,6.26502541,1596.2,1595.9,6.73891065]
[1744752263879,7.55005959,1596.1,1595.9,3.47297423]
[1744752264190,6.26595986,1596.0,1595.6,7.62738067]
[1744752264393,12.53252096,1595.9,1595.5,12.211449]
[1744752264701,6.26645336,1595.8,1595.5,6.267449]
[1744752265307,12.53313756,1595.8,1595.4,17.58395531]
[1744752265518,13.8177062,1595.8,1595.5,3.0]
[1744752265720,1.2846,1595.8,1595.7,6.26684213]
[1744752265898,1.2846,1595.8,1595.6,6.26705545]
[1744752266831,1.2846,1595.8,1595.5,15.53523794]
[1744752267008,7.5510899,1595.8,1595.5,9.26761897]
[1744752267205,7.5510899,1595.8,1595.5,9.26747815]
[1744752268946,7.5510899,1595.8,1595.5,15.53496978]
[1744752268947,1.2846,1595.8,1595.5,15.53496978]
[1744752269154,1.2846,1595.8,1595.5,17.50344554]
[1744752269451,1.2846,1595.8,1595.6,6.26718704]
[1744752269633,1.2846,1595.8,1595.5,9.26747815]
[1744752269952,7.55110073,1595.8,1595.5,9.26747815]
[1744752271657,13.81773953,1595.8,1595.5,9.26747815]
[1744752273441,7.55110073,1595.8,1595.5,9.26747815]
[1744752273660,6.1,1595.7,1595.5,9.26747815]
[1744752274375,6.1,1595.7,1595.5,3.0]
[1744752275877,6.1,1595.7,1595.5,9.26753728]
[1744752276082,6.1,1595.7,1595.5,15.53499288]
[1744752276575,6.1,1595.7,1595.5,9.26749194]
[1744752276977,6.1,1595.7,1595.5,15.5350162]
[1744752277472,6.1,1595.7,1595.6,6.26723489]
[1744752278659,6.1,1595.7,1595.6,9.26723489]
[1744752279638,6.1,1595.9,1595.6,15.53446978]
[1744752279838,6.1,1595.9,1595.7,6.26680263]
[1744752280839,6.1,1595.9,1595.7,12.53360526]
[1744752281494,6.1,1595.9,1595.8,6.26644942]
[1744752283203,6.1,1596.0,1595.8,6.26624868]
[1744752283354,6.1,1596.0,1595.9,6.26605677]
[1744752283555,6.1,1596.1,1595.9,6.26605677]
[1744752284159,6.1,1596.1,1595.9,0.46550816]
[1744752284403,6.1,1596.1,1595.8,12.53255833]
[1744752284997,12.3653001,1596.1,1595.8,12.53255833]
[1744752288105,6.1,1596.1,1596.0,6.26566416]
[1744752288398,6.1,1596.1,1595.9,12.53200592]
[1744752288696,6.1,1596.1,1595.9,13.01348832]
[1744752288872,6.1,1596.1,1595.9,6.74752246]
[1744752289587,6.1,1596.1,1595.9,13.01356252]
[1744752291197,6.1,1596.1,1596.0,6.26566416]
[1744752297191,6.1,1596.2,1596.0,6.26566416]
[1744752299071,8.08342036,1596.2,1595.9,0.4814824]
[1744752299273,7.51790171,1596.1,1595.8,6.26641291]
[1744752299601,13.78345722,1596.1,1595.8,6.26641291]
[1744752299765,6.26581071,1596.0,1595.7,6.26671176]
[1744752300400,6.26581071,1596.0,1595.6,10.41940566]
[1744752300586,7.51887342,1595.8,1595.5,12.53507502]
[1744752300772,6.1,1595.7,1595.5,6.74158662]
[1744752300974,6.1,1595.7,1595.6,3.0]
[1744752301273,6.1,1595.7,1595.6,10.24139355]
[1744752302178,6.1,1596.0,1595.9,6.26605677]
[1744752302509,6.1,1596.1,1595.9,12.53211354]
[1744752303206,6.1,1596.1,1595.9,6.26605677]
[1744752303418,6.26577064,1596.0,1595.9,0.47902822]
[1744752303632,8.12888526,1596.0,1595.7,6.26672892]
[1744752303927,6.26577064,1596.0,1595.7,6.26672892]
[1744752304326,6.26577064,1596.0,1595.7,12.53344502]
[1744752304835,6.26577064,1596.0,1595.6,10.50575296]
[1744752305026,7.45789993,1595.9,1595.6,9.26711178]
[1744752305232,7.45789993,1595.9,1595.6,15.53422002]
[1744752305542,13.72418144,1595.9,1595.6,9.26710824]
[1744752305828,7.45789993,1595.9,1595.6,9.26710824]
[1744752306031,6.1,1595.8,1595.6,9.26710824]
[1744752306189,6.1,1595.8,1595.7,9.26684213]
[1744752307421,6.1,1595.8,1595.7,10.82023026]
[1744752307597,6.1,1595.8,1595.7,12.10789879]
[1744752308199,6.1,1595.8,1595.7,12.04523026]
[1744752311946,6.1,1596.1,1595.9,6.26573475]
[1744752312303,6.1,1596.1,1595.9,12.53154862]
[1744752312503,6.1,1596.1,1595.9,12.5316898]
[1744752313219,6.1,1596.1,1596.0,6.26566416]
[1744752326254,6.1,1596.1,1595.9,12.99542276]
[1744752330272,6.1,1596.1,1596.0,6.26566416]
[1744752346064,13.72266712,1596.1,1595.9,0.46374755]
[1744752346264,13.72266712,1596.1,1595.8,12.53265275]
[1744752346476,12.36538628,1596.1,1595.8,12.53264305]
[1744752346683,6.2657265,1596.0,1595.7,6.2667332]
[1744752346987,7.3521,1595.9,1595.6,13.36041359]
[1744752347170,13.61834597,1595.9,1595.6,7.42741359]
[1744752347395,13.61834597,1595.9,1595.6,13.69455353]
[1744752347980,7.3521,1595.9,1595.7,6.26683521]
[1744752349093,7.3521,1595.9,1595.7,12.53367042]
[1744752350155,6.1,1595.9,1595.7,12.53367042]
[1744752350867,6.1,1595.9,1595.7,6.26673568]
[1744752351072,6.1,1595.9,1595.7,12.53347136]
[1744752355087,6.1,1595.9,1595.7,12.53345858]
[1744752356004,6.1,1595.9,1595.8,6.26644942]
[1744752356895,6.1,1595.9,1595.7,12.5334458]
[1744752357066,6.1,1595.9,1595.7,12.53344504]
[1744752358393,6.1,1595.9,1595.8,6.26644942]
[1744752358864,6.1,1596.0,1595.8,6.26644942]
[1744752359065,6.1,1596.0,1595.9,6.26605677]
[1744752359265,6.1,1596.0,1595.9,7.40745677]
[1744752359913,6.1,1596.0,1595.9,7.87724323]
[1744752364696,6.1,1596.2,1596.0,6.26564297]
[1744752370713,6.1,1596.2,1596.1,6.26527159]
[1744752370916,6.1,1596.2,1596.0,12.53110046]
[1744752371303,6.1,1596.2,1596.0,6.26554352]
[1744752371715,6.1,1596.2,1596.0,12.53108702]
[1744752372919,6.1,1596.2,1596.1,6.26527159]
[1744752374612,12.36487908,1596.2,1595.9,7.87712292]
[1744752374925,6.1,1596.2,1596.0,6.26565381]
[1744752375486,6.1,1596.2,1596.0,6.26555617]
[1744752375906,6.1,1596.2,1596.0,6.26554281]
[1744752376107,6.1,1596.2,1596.0,12.53108451]
[1744752376782,6.1,1596.2,1596.0,6.2655417]
[1744752378120,6.1,1596.2,1596.0,12.5311017]
[1744752378319,6.1,1596.2,1596.0,6.2655417]
[1744752379630,6.1,1596.2,1595.9,7.87713905]
[1744752379808,12.3650447,1596.2,1595.9,14.14310297]
[1744752381338,12.3650447,1596.2,1596.0,6.265659]
[1744752381633,6.1,1596.2,1596.0,6.265659]
[1744752382834,12.36491025,1596.2,1595.9,14.14324578]
[1744752383933,12.36491025,1596.2,1595.9,14.14316097]
[1744752384534,6.1,1596.2,1596.0,6.26539457]
[1744752385237,12.36498112,1596.2,1595.9,14.14318222]
[1744752386436,18.63010665,1596.2,1595.9,7.87718434]
[1744752387137,12.36498112,1596.2,1595.9,14.1431305]
[1744752387450,8.08004958,1596.2,1595.9,0.46978646]
[1744752387633,6.26539003,1596.1,1595.8,14.41608419]
[1744752387938,12.53088339,1596.1,1595.8,8.14974995]
[1744752388139,6.1,1596.0,1595.8,14.41607628]
[1744752389439,6.1,1596.0,1595.8,8.14974995]
[1744752389642,6.1,1596.0,1595.8,14.41607922]
[1744752390544,6.1,1596.0,1595.9,6.26605677]
[1744752394047,6.1,1596.1,1595.9,12.53211354]
[1744752394246,6.1,1596.1,1595.9,12.9926098]
[1744752394848,6.1,1596.1,1595.9,14.2398098]
[1744752395348,6.1,1596.1,1595.9,15.85213335]
[1744752395517,6.1,1596.1,1595.9,15.85201031]
[1744752397550,6.1,1596.1,1596.0,6.26566416]
[1744752397946,6.1,1596.1,1595.9,15.85199725]
[1744752398249,6.1,1596.1,1596.0,6.26566416]
[1744752399822,6.1,1596.2,1596.0,6.26566416]
[1744752402756,6.1,1596.2,1595.9,14.23962328]
[1744752403060,12.36493959,1596.2,1595.9,14.23963249]
[1744752404556,6.1,1596.2,1596.0,6.26561068]
[1744752406326,12.36500147,1596.2,1595.9,7.97368955]
[1744752406527,12.36500147,1596.2,1595.9,14.23962695]
[1744752407259,6.26528548,1596.1,1595.9,0.46060624]
[1744752407486,6.26528548,1596.1,1595.8,12.532706]
[1744752408260,13.6869973,1596.1,1595.8,6.26633872]
[1744752408560,13.68695674,1596.1,1595.8,6.26633872]
[1744752408777,13.68695922,1596.1,1595.8,6.26633872]
[1744752409355,7.42148548,1596.1,1595.8,12.53266321]
[1744752409659,13.68689951,1596.1,1595.8,6.26632449]
[1744752410273,15.06566818,1596.1,1595.8,6.26632449]
[1744752410446,6.26569934,1596.0,1595.8,3.0]
[1744752411580,6.1,1595.9,1595.8,9.26644942]
[1744752411944,6.1,1595.9,1595.8,3.0]
[1744752414799,6.1,1595.9,1595.8,9.26644942]
[1744752416552,6.1,1595.9,1595.8,11.14987507]
[1744752417388,6.1,1596.0,1595.8,17.41632449]
[1744752418092,6.1,1596.0,1595.9,6.26605677]
[1744752418592,6.1,1596.0,1595.9,9.64531547]
[1744752423101,6.1,1596.0,1595.9,11.52874112]
[1744752423300,6.1,1596.2,1596.0,6.2654172]
[1744752423600,6.1,1596.2,1596.0,8.14884285]
[1744752424396,6.1,1596.2,1596.0,14.41426692]
[1744752424570,6.1,1596.2,1596.0,8.14884285]
[1744752426197,6.1,1596.2,1596.0,14.41438844]
[1744752426402,6.1,1596.2,1596.0,8.14884285]
[1744752426623,6.1,1596.2,1596.0,14.41440973]
[1744752428106,6.1,1596.3,1596.1,6.26504966]
[1744752433714,12.36449228,1596.3,1596.1,6.26504966]
[1744752435381,12.36449228,1596.3,1596.0,14.41457007]
[1744752436980,6.1,1596.3,1596.1,6.26522998]
[1744752437182,12.36451605,1596.3,1596.0,14.41457007]
[1744752438307,6.1,1596.3,1596.1,6.26526005]
[1744752439610,6.1,1596.3,1596.1,6.26515893]
[1744752440292,6.1,1596.3,1596.2,6.26487908]
[1744752441510,6.1,1596.3,1596.1,13.67910962]
[1744752441715,6.1,1596.3,1596.1,7.41395069]
[1744752441914,6.1,1596.3,1596.1,13.67912918]
[1744752442516,6.1,1596.3,1596.2,6.26487908]
[1744752443012,6.1,1596.3,1596.2,8.14830473]
[1744752443186,6.1,1596.4,1596.2,17.41318381]
[1744752444284,6.1,1596.4,1596.3,6.26448662]
[1744752444912,6.1,1596.8,1596.6,6.26320173]
[1744752445421,6.1,1596.8,1596.7,6.26291726]
[1744752445619,22.49107269,1597.1,1596.7,6.26291726]
[1744752445620,6.1,1597.0,1596.7,15.58436017]
[1744752445825,6.1,1597.0,1596.8,12.52471574]
[1744752445987,6.1,1597.0,1596.9,6.26213288]
[1744752446191,10.176188,1597.1,1597.0,6.26174076]
[1744752446387,10.176188,1597.1,1597.0,8.87755771]
[1744752446617,10.176188,1597.1,1597.0,11.87755771]
[1744752447112,10.176188,1597.3,1597.2,6.26095667]
[1744752447316,4.076188,1597.3,1597.2,11.14438232]
[1744752447515,4.076188,1597.3,1597.2,14.02489742]
[1744752448238,4.076188,1597.3,1597.2,14.57489742]
[1744752448806,6.1,1597.7,1597.6,7.39308908]
[1744752449040,11.3990444,1597.8,1597.6,7.39308908]
[1744752449844,11.3990444,1597.8,1597.7,6.2589973]
[1744752450047,11.3990444,1597.8,1597.7,6.73011025]
[1744752450720,6.1,1597.8,1597.7,6.73011025]
[1744752450927,6.1,1597.8,1597.7,8.50893622]
[1744752451106,6.1,1597.8,1597.7,8.57151981]
[1744752451503,6.1,1598.1,1598.0,6.25782227]
[1744752451707,6.1,1598.3,1598.1,13.71635081]
[1744752451945,12.3762654,1598.4,1598.1,7.45898962]
[1744752452905,12.3762654,1598.4,1598.1,7.93724136]
[1744752453947,12.3762654,1598.4,1598.1,7.93722307]
[1744752455545,12.3762654,1598.4,1597.8,12.1475794]
[1744752455546,7.3288,1598.3,1597.9,3.0]
[1744752455724,6.25746165,1598.1,1597.9,3.0]
[1744752456243,6.25703916,1598.2,1597.8,5.889]
[1744752456444,6.25823218,1597.9,1597.7,0.47111295]
[1744752456625,6.25823218,1597.9,1597.6,6.25921779]
[1744752456626,6.1,1597.8,1597.6,6.25921779]
[1744752456815,6.1,1597.8,1597.5,17.34431359]
[1744752457014,12.35866003,1597.8,1597.6,3.0]
[1744752457217,13.55536003,1597.8,1597.5,19.07864788]
[1744752457652,13.55536003,1597.8,1597.6,3.0]
[1744752457840,7.2967,1597.8,1597.6,3.47432312]
[1744752458227,7.2967,1597.8,1597.6,9.73347066]
[1744752458425,7.2967,1597.8,1597.6,11.98871824]
[1744752459447,7.2967,1597.8,1597.6,18.24797837]
[1744752459613,6.1,1597.8,1597.6,18.24797837]
[1744752459820,6.1,1597.8,1597.6,11.98871824]
[1744752460445,6.1,1597.8,1597.6,18.24795705]
[1744752460748,6.1,1597.8,1597.6,11.98871824]
[1744752461042,6.1,1597.8,1597.6,3.47432312]
[1744752461043,12.35860742,1597.8,1597.6,3.47432312]
[1744752461448,6.1,1597.7,1597.6,3.47432312]
[1744752462851,6.1,1597.7,1597.6,9.7337122]
[1744752464654,6.1,1597.7,1597.6,13.39877259]
[1744752465539,6.1,1597.7,1597.6,14.61257259]
[1744752465744,6.1,1597.7,1597.6,17.3257469]
[1744752466747,6.1,1598.0,1597.9,7.4720139]
[1744752468548,6.1,1598.0,1597.9,10.534589]
[1744752470239,6.1,1598.3,1598.1,6.25730504]
[1744752470440,6.1,1598.3,1598.1,12.51461008]
[1744752470969,6.1,1598.3,1598.1,6.25730504]
[1744752471191,6.1,1598.3,1598.2,6.25703916]
[1744752473471,6.1,1598.3,1598.1,13.50684662]
[1744752473685,6.1,1598.3,1598.1,7.24954158]
[1744752474167,6.1,1598.3,1598.1,7.72760231]
[1744752474370,6.1,1598.3,1598.2,6.25703916]
[1744752474538,6.1,1598.3,1598.2,7.65550331]
[1744752474874,6.1,1598.3,1598.2,1.39846415]
[1744752476578,6.1,1598.3,1598.2,7.65550331]
[1744752477476,6.1,1598.3,1598.2,1.39846415]
[1744752478055,6.1,1598.3,1598.1,12.9926851]
[1744752478943,6.1,1598.3,1598.2,6.25703916]
[1744752483072,6.1,1598.3,1598.1,14.24259375]
[1744752483461,1.2408,1598.2,1597.9,15.13210198]
[1744752483653,13.75531149,1598.2,1597.9,9.25810198]
[1744752484044,6.25755719,1598.1,1597.9,3.0]
[1744752484542,7.497975,1598.2,1597.9,3.0]
[1744752484747,6.25744436,1598.1,1597.9,3.0]
[1744752485180,6.25813969,1598.0,1597.7,1.168]
[1744752485376,13.59910326,1597.9,1597.6,12.76721069]
[1744752485575,6.2589973,1597.7,1597.6,0.2488]
[1744752486072,13.5997973,1597.7,1597.6,0.2488]
[1744752487558,7.4395809,1597.5,1596.9,14.17764454]
[1744752487844,7.4395809,1597.5,1597.0,3.0]
[1744752487845,6.26083584,1597.3,1597.0,3.0]
[1744752488057,12.5217451,1597.3,1597.0,3.0]
[1744752488263,18.37332066,1597.2,1597.0,3.0]
[1744752488471,19.55312066,1597.2,1597.0,3.0]